Workbook

Sheet общий
A2: РАЗРАБОТАНО И ПРИНЯТО | K2: УТВЕРЖДЕНО
A3: Решением педагогического совета | K3: Приказом по МОУ «Средняя школа №55»
A4: МОУ «Средняя школа №55» | K4: «___» _________________
A5: Протокол №__ от _____ | K5: Директор школы Ермоленко Р.Е.
A6: 2025/2026 учебный год
A8: Предметная область | B8: Учебные предметы, курсы | C8: Классы/ количество часов в неделю
C9: 5-дневная неделя | K9: ИТОГО:
C10: I | E10: II | G10: III | I10: IV | K10: всего за неделю | L10: 33/34 недели
A11: 1.Обязательная часть | C11: Неделя | D11: Год | E11: Неделя | F11: Год | G11: Неделя | H11: Год | I11: Неделя | J11: Год
A12: Русский язык и литература | B12: Русский язык | C12: 5 | D12: =C12*33 -> 165 | E12: 5 | F12: =E12*34 -> 170 | G12: 5 | H12: =G12*34 -> 170 | I12: 5 | J12: =PRODUCT(I12*34) -> 170 | K12: =C12+E12+G12+I12 -> 20 | L12: =D12+F12+H12+J12 -> 675
B13: Литература | C13: 4 | D13: =C13*33 -> 132 | E13: 4 | F13: =E13*34 -> 136 | G13: 4 | H13: =G13*34 -> 136 | I13: 4 | J13: =PRODUCT(I13*34) -> 136 | K13: =C13+E13+G13+I13 -> 16 | L13: =D13+F13+H13+J13 -> 540
A14: Иностранные языки | B14: Иностранный язык | E14: 2 | F14: 68 | G14: 2 | H14: 68 | I14: 2 | J14: 68 | K14: 6 | L14: 204
A15: Математика и информатика | B15: Математика | C15: 4 | D15: 132 | E15: 4 | F15: 136 | G15: 4 | H15: 136 | I15: 4 | J15: 136 | K15: 16 | L15: 540
A16: Обществознание и естествознание | B16: Окружающий мир | C16: 2 | D16: 66 | E16: 2 | F16: 68 | G16: 2 | H16: 68 | I16: 2 | J16: 68 | K16: 8 | L16: 270
A17: Искусство | B17: Музыка | C17: 1 | D17: 33 | E17: 1 | F17: 34 | G17: 1 | H17: 34 | I17: 1 | J17: 34 | K17: 4 | L17: 135
B18: Изобразительное искусство | C18: 1 | D18: 33 | E18: 1 | F18: 34 | G18: 1 | H18: 34 | I18: 1 | J18: 34 | K18: 4 | L18: 135
A19: Основы религиозных культур и светской этики | B19: Основы религиозных культур и светской этики | F19: 0 | H19: 0 | I19: 1 | J19: 34 | K19: 1 | L19: 34
A20: Технология | B20: Труд (Технология) | C20: 1 | D20: 33 | E20: 1 | F20: 34 | G20: 1 | H20: 34 | I20: 1 | J20: 34 | K20: 4 | L20: 135
A21: Физическая культура | B21: Физическая культура | C21: 2 | D21: 66 | E21: 2 | F21: 68 | G21: 2 | H21: 68 | I21: 2 | J21: 68 | K21: 8 | L21: 270
A22: Итого | C22: =SUM(C12:C21) -> 20 | D22: 660 | E22: 22 | F22: 748 | G22: 22 | H22: 748 | I22: 23 | J22: 782 | K22: 87 | L22: 2938
A23: 2.Часть, формируемая участниками образовательных отношений
A24: Математика | C24: 1 | D24: =C24*33 -> 33 | E24: 1 | F24: 34 | G24: 1 | H24: 34 | K24: =C24+E24+G24 -> 3 | L24: =D24+F24+H24 -> 101
A25: Итого | C25: =SUM(C24:C24) -> 1 | D25: 33 | E25: 1 | F25: 34 | G25: 1 | H25: 34 | K25: =SUM(K24:K24) -> 3 | L25: =SUM(L24:L24) -> 101
A26: Итого (1 и 2 части плана) | C26: =C25+C22 -> 21 | D26: 693 | E26: 23 | F26: 782 | G26: 23 | H26: 782 | I26: =I25+I22 -> 23 | J26: 782 | K26: =K25+K22 -> 90 | L26: =L25+L22 -> 3039

Sheet 1 классы
A2: РАЗРАБОТАНО И ПРИНЯТО | T2: УТВЕРЖДЕНО
A3: Решением педагогического совета | T3: Приказом по МОУ «Средняя школа №55»
A4: МОУ «Средняя школа №55» | T4: «___» _________________
A5: Протокол №__ от _____ | T5: Директор школы Ермоленко Р.Е.
A6: 2025/2026 учебный год
A8: Предметная область | B8: Учебные предметы, курсы | C8: Классы/ количество часов в неделю
C9: 5-дневная неделя | S9: ИТОГО:
C10: 1а | E10: 1б | G10: 1в | I10: 1г | K10: 1д | M10: 1е | O10: 1ж | Q10: 1з | S10: всего за неделю | T10: 33 недели
A11: 1.Обязательная часть | C11: Неделя | D11: Год | E11: Неделя | F11: Год | G11: Неделя | H11: Год | I11: Неделя | J11: Год | K11: Неделя | L11: Год | M11: Неделя | N11: Год | O11: Неделя | P11: Год | Q11: Неделя | R11: Год
A12: Русский язык и литература | B12: Русский язык | C12: 5 | D12: =C12*33 -> 165 | E12: 5 | F12: =E12*33 -> 165 | G12: 5 | H12: =G12*33 -> 165 | I12: 5 | J12: =PRODUCT(I12*33) -> 165 | K12: 5 | L12: =PRODUCT(K12*33) -> 165 | M12: 5 | N12: =PRODUCT(M12*33) -> 165 | O12: 5 | P12: =PRODUCT(O12*33) -> 165 | Q12: 5 | R12: =PRODUCT(Q12*33) -> 165 | S12: =C12+E12+G12+Q12+I12+K12+M12+O12 -> 40 | T12: =D12+F12+H12+R12+J12+L12+N12+P12 -> 1320
B13: Литература | C13: 4 | D13: =C13*33 -> 132 | E13: 4 | F13: =E13*33 -> 132 | G13: 4 | H13: =G13*33 -> 132 | I13: 4 | J13: =PRODUCT(I13*33) -> 132 | K13: 4 | L13: =PRODUCT(K13*33) -> 132 | M13: 4 | N13: =PRODUCT(M13*33) -> 132 | O13: 4 | P13: =PRODUCT(O13*33) -> 132 | Q13: 4 | R13: =PRODUCT(Q13*33) -> 132 | S13: =C13+E13+G13+Q13+I13+K13+M13+O13 -> 32 | T13: =D13+F13+H13+R13+J13+L13+N13+P13 -> 1056
A14: Иностранные языки | B14: Иностранный язык | F14: 0 | H14: 0 | J14: 0 | L14: 0 | N14: 0 | P14: 0 | R14: 0
A15: Математика и информатика | B15: Математика | C15: 4 | D15: 132 | E15: 4 | F15: 132 | G15: 4 | H15: 132 | I15: 4 | J15: 132 | K15: 4 | L15: 132 | M15: 4 | N15: 132 | O15: 4 | P15: 132 | Q15: 4 | R15: 132 | S15: 32 | T15: 1056
A16: Обществознание и естествознание | B16: Окружающий мир | C16: 2 | D16: 66 | E16: 2 | F16: 66 | G16: 2 | H16: 66 | I16: 2 | J16: 66 | K16: 2 | L16: 66 | M16: 2 | N16: 66 | O16: 2 | P16: 66 | Q16: 2 | R16: 66 | S16: 16 | T16: 528
A17: Искусство | B17: Музыка | C17: 1 | D17: 33 | E17: 1 | F17: 33 | G17: 1 | H17: 33 | I17: 1 | J17: 33 | K17: 1 | L17: 33 | M17: 1 | N17: 33 | O17: 1 | P17: 33 | Q17: 1 | R17: 33 | S17: 8 | T17: 264
B18: Изобразительное искусство | C18: 1 | D18: 33 | E18: 1 | F18: 33 | G18: 1 | H18: 33 | I18: 1 | J18: 33 | K18: 1 | L18: 33 | M18: 1 | N18: 33 | O18: 1 | P18: 33 | Q18: 1 | R18: 33 | S18: 8 | T18: 264
A19: Основы религиозных культур и светской этики | B19: Основы религиозных культур и светской этики | F19: 0 | H19: 0 | J19: 0 | L19: 0 | N19: 0 | P19: 0 | R19: 0
A20: Технология | B20: Труд (Технология) | C20: 1 | D20: 33 | E20: 1 | F20: 33 | G20: 1 | H20: 33 | I20: 1 | J20: 33 | K20: 1 | L20: 33 | M20: 1 | N20: 33 | O20: 1 | P20: 33 | Q20: 1 | R20: 33 | S20: 8 | T20: 264
A21: Физическая культура | B21: Физическая культура | C21: 2 | D21: 66 | E21: 2 | F21: 66 | G21: 2 | H21: 66 | I21: 2 | J21: 66 | K21: 2 | L21: 66 | M21: 2 | N21: 66 | O21: 2 | P21: 66 | Q21: 2 | R21: 66 | S21: 16 | T21: 528
A22: Итого | C22: =SUM(C12:C21) -> 20 | D22: 660 | E22: 20 | F22: 660 | G22: 20 | H22: 660 | I22: 20 | J22: 660 | K22: 20 | L22: 660 | M22: 20 | N22: 660 | O22: 20 | P22: 660 | Q22: 20 | R22: 660 | S22: 160 | T22: 5280
A23: 2.Часть, формируемая участниками образовательных отношений
A24: Математика | C24: 1 | D24: =C24*33 -> 33 | E24: 1 | F24: =E24*33 -> 33 | G24: 1 | H24: =G24*33 -> 33 | I24: 1 | J24: =I24*33 -> 33 | K24: 1 | L24: =K24*33 -> 33 | M24: 1 | N24: =M24*33 -> 33 | O24: 1 | P24: =O24*33 -> 33 | Q24: 1 | R24: =Q24*33 -> 33 | S24: =C24+E24+G24+I24+K24+M24+O24+Q24 -> 8 | T24: =D24+F24+H24+J24+L24+N24+P24+R24 -> 264
A25: Итого | C25: =SUM(C24:C24) -> 1 | D25: =SUM(D24:D24) -> 33 | E25: 1 | F25: 33 | G25: 1 | H25: 33 | I25: 1 | J25: 33 | K25: 1 | L25: 33 | M25: 1 | N25: 33 | O25: 1 | P25: 33 | Q25: 1 | R25: 33 | S25: =SUM(S24:S24) -> 8 | T25: =SUM(T24:T24) -> 264
A26: Итого (1 и 2 части плана) | C26: =C25+C22 -> 21 | D26: 693 | E26: 21 | F26: 693 | G26: 21 | H26: 693 | I26: =I25+I22 -> 21 | J26: =J25+J22 -> 693 | K26: =K25+K22 -> 21 | L26: =L25+L22 -> 693 | M26: =M25+M22 -> 21 | N26: =N25+N22 -> 693 | O26: =O25+O22 -> 21 | P26: =P25+P22 -> 693 | Q26: =Q25+Q22 -> 21 | R26: 693 | S26: =S25+S22 -> 168 | T26: =T25+T22 -> 5544

Sheet 2 классы
A2: РАЗРАБОТАНО И ПРИНЯТО | R2: УТВЕРЖДЕНО
A3: Решением педагогического совета | R3: Приказом по МОУ «Средняя школа №55»
A4: МОУ «Средняя школа №55» | R4: «___» _________________
A5: Протокол №__ от _____ | R5: Директор школы Ермоленко Р.Е.
A6: 2025/2026 учебный год
A8: Предметная область | B8: Учебные предметы, курсы | C8: Классы/ количество часов в неделю
C9: 5-дневная неделя | Q9: ИТОГО:
C10: 2а | E10: 2б | G10: 2в | I10: 2г | K10: 2д | M10: 2е | O10: 2ж | Q10: всего за неделю | R10: 33/34 недели
A11: 1.Обязательная часть | C11: Неделя | D11: Год | E11: Неделя | F11: Год | G11: Неделя | H11: Год | I11: Неделя | J11: Год | K11: Неделя | L11: Год | M11: Неделя | N11: Год | O11: Неделя | P11: Год
A12: Русский язык и литература | B12: Русский язык | C12: 5 | D12: =C12*34 -> 170 | E12: 5 | F12: =E12*34 -> 170 | G12: 5 | H12: =G12*34 -> 170 | I12: 5 | J12: =PRODUCT(I12*34) -> 170 | K12: 5 | L12: =PRODUCT(K12*34) -> 170 | M12: 5 | N12: =PRODUCT(M12*34) -> 170 | O12: 5 | P12: =PRODUCT(O12*34) -> 170 | Q12: =C12+E12+G12+O12+I12+K12+M12 -> 35 | R12: =D12+F12+H12+P12+J12+L12+N12 -> 1190
B13: Литература | C13: 4 | D13: =C13*34 -> 136 | E13: 4 | F13: =E13*34 -> 136 | G13: 4 | H13: =G13*34 -> 136 | I13: 4 | J13: =PRODUCT(I13*34) -> 136 | K13: 4 | L13: 136 | M13: 4 | N13: =PRODUCT(M13*34) -> 136 | O13: 4 | P13: 136 | Q13: =C13+E13+G13+O13+I13+K13+M13 -> 28 | R13: =D13+F13+H13+P13+J13+L13+N13 -> 952
A14: Иностранные языки | B14: Иностранный язык | C14: 2 | D14: 68 | E14: 2 | F14: 68 | G14: 2 | H14: 68 | I14: 2 | J14: =PRODUCT(I14*34) -> 68 | K14: 2 | L14: 68 | M14: 2 | N14: 68 | O14: 2 | P14: 68 | Q14: 14 | R14: 476
A15: Математика и информатика | B15: Математика | C15: 4 | D15: 136 | E15: 4 | F15: 136 | G15: 4 | H15: 136 | I15: 4 | J15: =PRODUCT(I15*34) -> 136 | K15: 4 | L15: 136 | M15: 4 | N15: 136 | O15: 4 | P15: 136 | Q15: 28 | R15: 952
A16: Обществознание и естествознание | B16: Окружающий мир | C16: 2 | D16: 68 | E16: 2 | F16: 68 | G16: 2 | H16: 68 | I16: 2 | J16: =PRODUCT(I16*34) -> 68 | K16: 2 | L16: 68 | M16: 2 | N16: 68 | O16: 2 | P16: 68 | Q16: 14 | R16: 476
A17: Искусство | B17: Музыка | C17: 1 | D17: 34 | E17: 1 | F17: 34 | G17: 1 | H17: 34 | I17: 1 | J17: =PRODUCT(I17*34) -> 34 | K17: 1 | L17: 34 | M17: 1 | N17: 34 | O17: 1 | P17: 34 | Q17: 7 | R17: 238
B18: Изобразительное искусство | C18: 1 | D18: 34 | E18: 1 | F18: 34 | G18: 1 | H18: 34 | I18: 1 | J18: =PRODUCT(I18*34) -> 34 | K18: 1 | L18: 34 | M18: 1 | N18: 34 | O18: 1 | P18: 34 | Q18: 7 | R18: 238
A19: Основы религиозных культур и светской этики | B19: Основы религиозных культур и светской этики | Q19: 0 | R19: 0
A20: Технология | B20: Труд (Технология) | C20: 1 | D20: 34 | E20: 1 | F20: 34 | G20: 1 | H20: 34 | I20: 1 | J20: =PRODUCT(I20*34) -> 34 | K20: 1 | L20: 34 | M20: 1 | N20: 34 | O20: 1 | P20: 34 | Q20: 7 | R20: 238
A21: Физическая культура | B21: Физическая культура | C21: 2 | D21: 68 | E21: 2 | F21: 68 | G21: 2 | H21: 68 | I21: 2 | J21: =PRODUCT(I21*34) -> 68 | K21: 2 | L21: 68 | M21: 2 | N21: 68 | O21: 2 | P21: 68 | Q21: 14 | R21: 476
A22: Итого | C22: =SUM(C12:C21) -> 22 | D22: 748 | E22: 22 | F22: 748 | G22: 22 | H22: 748 | I22: 22 | J22: 748 | K22: 22 | L22: 748 | M22: 22 | N22: 748 | O22: 22 | P22: 748 | Q22: =C22+E22+G22+O22+I22+K22+M22 -> 154 | R22: =D22+F22+H22+P22+J22+L22+N22 -> 5236
A23: 2.Часть, формируемая участниками образовательных отношений
A24: Математика | C24: 1 | D24: =C24*33 -> 33 | E24: 1 | F24: 34 | G24: 1 | H24: 34 | I24: 1 | J24: 34 | K24: 1 | L24: 34 | M24: 1 | N24: 34 | O24: 1 | P24: 34 | Q24: =C24+E24+G24+I24+K24+M24+O24 -> 7 | R24: =D24+F24+H24+J24+L24+N24+P24 -> 237
A25: Итого | C25: =SUM(C24:C24) -> 1 | D25: 33 | E25: 1 | F25: 34 | G25: 1 | H25: 34 | I25: 1 | J25: 34 | K25: 1 | L25: 34 | M25: 1 | N25: 34 | O25: 1 | P25: 34 | Q25: 7 | R25: 237
A26: Итого (1 и 2 части плана) | C26: =C25+C22 -> 23 | D26: 781 | E26: 23 | F26: 782 | G26: 23 | H26: 782 | I26: =I25+I22 -> 23 | J26: =J25+J22 -> 782 | K26: =K25+K22 -> 23 | L26: =L25+L22 -> 782 | M26: =M25+M22 -> 23 | N26: =N25+N22 -> 782 | O26: =O25+O22 -> 23 | P26: 782 | Q26: =Q25+Q22 -> 161 | R26: =R25+R22 -> 5473

Sheet 3 классы
A2: РАЗРАБОТАНО И ПРИНЯТО | T2: УТВЕРЖДЕНО
A3: Решением педагогического совета | T3: Приказом по МОУ «Средняя школа №55»
A4: МОУ «Средняя школа №55» | T4: «___» _________________
A5: Протокол №__ от _____ | T5: Директор школы Ермоленко Р.Е.
A6: 2025/2026 учебный год
A8: Предметная область | B8: Учебные предметы, курсы | C8: Классы/ количество часов в неделю
C9: 5-дневная неделя | S9: ИТОГО:
C10: 3а | E10: 3б | G10: 3в | I10: 3г | K10: 3д | M10: 3е | O10: 3ж | Q10: 3з | S10: всего за неделю | T10: 33/34 недели
A11: 1.Обязательная часть | C11: Неделя | D11: Год | E11: Неделя | F11: Год | G11: Неделя | H11: Год | I11: Неделя | J11: Год | K11: Неделя | L11: Год | M11: Неделя | N11: Год | O11: Неделя | P11: Год | Q11: Неделя | R11: Год
A12: Русский язык и литература | B12: Русский язык | C12: 5 | D12: =C12*33 -> 165 | E12: 5 | F12: =E12*34 -> 170 | G12: 5 | H12: =G12*34 -> 170 | I12: 5 | J12: =PRODUCT(I12*34) -> 170 | K12: 5 | L12: =PRODUCT(K12*34) -> 170 | M12: 5 | N12: =PRODUCT(M12*34) -> 170 | O12: 5 | P12: =PRODUCT(O12*34) -> 170 | Q12: 5 | R12: =PRODUCT(Q12*34) -> 170 | S12: =C12+E12+G12+Q12+I12+K12+M12+O12 -> 40 | T12: =D12+F12+H12+R12+J12+L12+N12+P12 -> 1355
B13: Литература | C13: 4 | D13: =C13*33 -> 132 | E13: 4 | F13: =E13*34 -> 136 | G13: 4 | H13: =G13*34 -> 136 | I13: 4 | J13: =PRODUCT(I13*34) -> 136 | K13: 4 | L13: =PRODUCT(K13*34) -> 136 | M13: 4 | N13: 136 | O13: 4 | P13: =PRODUCT(O13*34) -> 136 | Q13: 4 | R13: 136 | S13: =C13+E13+G13+Q13+I13+K13+M13+O13 -> 32 | T13: =D13+F13+H13+R13+J13+L13+N13+P13 -> 1084
A14: Иностранные языки | B14: Иностранный язык | C14: 2 | E14: 2 | F14: 68 | G14: 2 | H14: 68 | I14: 2 | J14: =PRODUCT(I14*34) -> 68 | K14: 2 | L14: =PRODUCT(K14*34) -> 68 | M14: 2 | N14: 68 | O14: 2 | P14: 68 | Q14: 2 | R14: 68 | S14: 16 | T14: 476
A15: Математика и информатика | B15: Математика | C15: 4 | D15: 132 | E15: 4 | F15: 136 | G15: 4 | H15: 136 | I15: 4 | J15: =PRODUCT(I15*34) -> 136 | K15: 4 | L15: =PRODUCT(K15*34) -> 136 | M15: 4 | N15: 136 | O15: 4 | P15: 136 | Q15: 4 | R15: 136 | S15: 32 | T15: 1084
A16: Обществознание и естествознание | B16: Окружающий мир | C16: 2 | D16: 66 | E16: 2 | F16: 68 | G16: 2 | H16: 68 | I16: 2 | J16: =PRODUCT(I16*34) -> 68 | K16: 2 | L16: =PRODUCT(K16*34) -> 68 | M16: 2 | N16: 68 | O16: 2 | P16: 68 | Q16: 2 | R16: 68 | S16: 16 | T16: 542
A17: Искусство | B17: Музыка | C17: 1 | D17: 33 | E17: 1 | F17: 34 | G17: 1 | H17: 34 | I17: 1 | J17: =PRODUCT(I17*34) -> 34 | K17: 1 | L17: =PRODUCT(K17*34) -> 34 | M17: 1 | N17: 34 | O17: 1 | P17: 34 | Q17: 1 | R17: 34 | S17: 8 | T17: 271
B18: Изобразительное искусство | C18: 1 | D18: 33 | E18: 1 | F18: 34 | G18: 1 | H18: 34 | I18: 1 | J18: =PRODUCT(I18*34) -> 34 | K18: 1 | L18: =PRODUCT(K18*34) -> 34 | M18: 1 | N18: 34 | O18: 1 | P18: 34 | Q18: 1 | R18: 34 | S18: 8 | T18: 271
A19: Основы религиозных культур и светской этики | B19: Основы религиозных культур и светской этики | T19: 0
A20: Технология | B20: Труд (Технология) | C20: 1 | D20: 33 | E20: 1 | F20: 34 | G20: 1 | H20: 34 | I20: 1 | J20: =PRODUCT(I20*34) -> 34 | K20: 1 | L20: =PRODUCT(K20*34) -> 34 | M20: 1 | N20: 34 | O20: 1 | P20: 34 | Q20: 1 | R20: 34 | S20: 8 | T20: 271
A21: Физическая культура | B21: Физическая культура | C21: 2 | D21: 66 | E21: 2 | F21: 68 | G21: 2 | H21: 68 | I21: 2 | J21: =PRODUCT(I21*34) -> 68 | K21: 2 | L21: =PRODUCT(K21*34) -> 68 | M21: 2 | N21: 68 | O21: 2 | P21: 68 | Q21: 2 | R21: 68 | S21: 16 | T21: 542
A22: Итого | C22: =SUM(C12:C21) -> 22 | D22: 660 | E22: 22 | F22: 748 | G22: 22 | H22: 748 | I22: 22 | J22: 748 | K22: 22 | L22: 748 | M22: 22 | N22: 748 | O22: 22 | P22: 748 | Q22: 22 | R22: 748 | S22: 176 | T22: =D22+F22+H22+R22+J22+L22+N22+P22 -> 5896
A23: 2.Часть, формируемая участниками образовательных отношений
A24: Математика | C24: 1 | D24: =C24*34 -> 34 | E24: 1 | F24: 34 | G24: 1 | H24: 34 | I24: 1 | J24: 34 | K24: 1 | L24: 34 | M24: 1 | N24: 34 | O24: 1 | P24: 34 | Q24: 1 | R24: 34 | S24: =C24+E24+G24+I24+K24+M24+O24+Q24 -> 8 | T24: =D24+F24+H24+J24+L24+N24+P24+R24 -> 272
A25: Итого | C25: =SUM(C24:C24) -> 1 | D25: 34 | E25: 1 | F25: 34 | G25: 1 | H25: 34 | I25: =SUM(I24:I24) -> 1 | J25: 34 | K25: 1 | L25: 34 | M25: 1 | N25: 34 | O25: 1 | P25: 34 | Q25: 1 | R25: 34 | S25: =SUM(S24:S24) -> 8 | T25: =SUM(T24:T24) -> 272
A26: Итого (1 и 2 части плана) | C26: =C25+C22 -> 23 | D26: 694 | E26: 23 | F26: 782 | G26: 23 | H26: 782 | I26: =I25+I22 -> 23 | J26: =J25+J22 -> 782 | K26: =K25+K22 -> 23 | L26: =L25+L22 -> 782 | M26: =M25+M22 -> 23 | N26: =N25+N22 -> 782 | O26: =O25+O22 -> 23 | P26: =P25+P22 -> 782 | Q26: =Q25+Q22 -> 23 | R26: 782 | S26: =S25+S22 -> 184 | T26: =T25+T22 -> 6168

Sheet 4 классы
A2: РАЗРАБОТАНО И ПРИНЯТО | V2: УТВЕРЖДЕНО
A3: Решением педагогического совета | V3: Приказом по МОУ «Средняя школа №55»
A4: МОУ «Средняя школа №55» | V4: «___» _________________
A5: Протокол №__ от _____ | V5: Директор школы Ермоленко Р.Е.
A6: 2025/2026 учебный год
A8: Предметная область | B8: Учебные предметы, курсы | C8: Классы/ количество часов в неделю
C9: 5-дневная неделя | U9: ИТОГО:
C10: 4а | E10: 4б | G10: 4в | I10: 4г | K10: 4д | M10: 4е | O10: 4ж | Q10: 4з | S10: 4и | U10: всего за неделю | V10: 33/34 недели
A11: 1.Обязательная часть | C11: Неделя | D11: Год | E11: Неделя | F11: Год | G11: Неделя | H11: Год | I11: Неделя | J11: Год | K11: Неделя | L11: Год | M11: Неделя | N11: Год | O11: Неделя | P11: Год | Q11: Неделя | R11: Год | S11: Неделя | T11: Год
A12: Русский язык и литература | B12: Русский язык | C12: 5 | D12: =C12*34 -> 170 | E12: 5 | F12: =E12*34 -> 170 | G12: 5 | H12: =G12*34 -> 170 | I12: 5 | J12: =PRODUCT(I12*34) -> 170 | K12: 5 | L12: =PRODUCT(K12*34) -> 170 | M12: 5 | N12: =PRODUCT(M12*34) -> 170 | O12: 5 | P12: =PRODUCT(O12*34) -> 170 | Q12: 5 | R12: =PRODUCT(Q12*34) -> 170 | S12: 5 | T12: =PRODUCT(S12*34) -> 170 | U12: =C12+E12+G12+S12+I12+K12+M12+O12+Q12 -> 45 | V12: =D12+F12+H12+T12+J12+L12+N12+P12+R12 -> 1530
B13: Литература | C13: 4 | D13: =C13*34 -> 136 | E13: 4 | F13: =E13*34 -> 136 | G13: 4 | H13: =G13*34 -> 136 | I13: 4 | J13: =PRODUCT(I13*34) -> 136 | K13: 4 | L13: 136 | M13: 4 | N13: =PRODUCT(M13*34) -> 136 | O13: 4 | P13: 136 | Q13: 4 | R13: =PRODUCT(Q13*34) -> 136 | S13: 4 | T13: 136 | U13: =C13+E13+G13+S13+I13+K13+M13+O13+Q13 -> 36 | V13: =D13+F13+H13+T13+J13+L13+N13+P13+R13 -> 1224
A14: Иностранные языки | B14: Иностранный язык | C14: 2 | D14: 68 | E14: 2 | F14: 68 | G14: 2 | H14: 68 | I14: 2 | J14: =PRODUCT(I14*34) -> 68 | K14: 2 | L14: 68 | M14: 2 | N14: =PRODUCT(M14*34) -> 68 | O14: 2 | P14: 68 | Q14: 2 | R14: 68 | S14: 2 | T14: 68 | U14: 18 | V14: 612
A15: Математика и информатика | B15: Математика | C15: 4 | D15: 136 | E15: 4 | F15: 136 | G15: 4 | H15: 136 | I15: 4 | J15: =PRODUCT(I15*34) -> 136 | K15: 4 | L15: 136 | M15: 4 | N15: =PRODUCT(M15*34) -> 136 | O15: 4 | P15: 136 | Q15: 4 | R15: 136 | S15: 4 | T15: 136 | U15: 36 | V15: 1224
A16: Обществознание и естествознание | B16: Окружающий мир | C16: 2 | D16: 68 | E16: 2 | F16: 68 | G16: 2 | H16: 68 | I16: 2 | J16: =PRODUCT(I16*34) -> 68 | K16: 2 | L16: 68 | M16: 2 | N16: =PRODUCT(M16*34) -> 68 | O16: 2 | P16: 68 | Q16: 2 | R16: 68 | S16: 2 | T16: 68 | U16: 18 | V16: 612
A17: Искусство | B17: Музыка | C17: 1 | D17: 34 | E17: 1 | F17: 34 | G17: 1 | H17: 34 | I17: 1 | J17: =PRODUCT(I17*34) -> 34 | K17: 1 | L17: 34 | M17: 1 | N17: =PRODUCT(M17*34) -> 34 | O17: 1 | P17: 34 | Q17: 1 | R17: 34 | S17: 1 | T17: 34 | U17: 9 | V17: 306
B18: Изобразительное искусство | C18: 1 | D18: 34 | E18: 1 | F18: 34 | G18: 1 | H18: 34 | I18: 1 | J18: =PRODUCT(I18*34) -> 34 | K18: 1 | L18: 34 | M18: 1 | N18: =PRODUCT(M18*34) -> 34 | O18: 1 | P18: 34 | Q18: 1 | R18: 34 | S18: 1 | T18: 34 | U18: 9 | V18: 306
A19: Основы религиозных культур и светской этики | B19: Основы религиозных культур и светской этики | C19: 1 | D19: 34 | E19: 1 | F19: 34 | G19: 1 | H19: 34 | I19: 1 | J19: =PRODUCT(I19*34) -> 34 | K19: 1 | L19: 34 | M19: 1 | N19: =PRODUCT(M19*34) -> 34 | O19: 1 | P19: 34 | Q19: 1 | R19: 34 | S19: 1 | T19: 34 | U19: 9 | V19: 306
A20: Технология | B20: Труд (Технология) | C20: 1 | D20: 34 | E20: 1 | F20: 34 | G20: 1 | H20: 34 | I20: 1 | J20: =PRODUCT(I20*34) -> 34 | K20: 1 | L20: 34 | M20: 1 | N20: =PRODUCT(M20*34) -> 34 | O20: 1 | P20: 34 | Q20: 1 | R20: 34 | S20: 1 | T20: 34 | U20: 9 | V20: 306
A21: Физическая культура | B21: Физическая культура | C21: 2 | D21: 68 | E21: 2 | F21: 68 | G21: 2 | H21: 68 | I21: 2 | J21: =PRODUCT(I21*34) -> 68 | K21: 2 | L21: 68 | M21: 2 | N21: =PRODUCT(M21*34) -> 68 | O21: 2 | P21: 68 | Q21: 2 | R21: 68 | S21: 2 | T21: 68 | U21: 18 | V21: 612
A22: Итого | C22: =SUM(C12:C21) -> 23 | D22: 782 | E22: 23 | F22: 782 | G22: 23 | H22: 782 | I22: 23 | J22: 782 | K22: 23 | L22: 782 | M22: 23 | N22: 782 | O22: 23 | P22: 782 | Q22: 23 | R22: 782 | S22: 23 | T22: 782 | U22: 207 | V22: 7038
A23: 2.Часть, формируемая участниками образовательных отношений
A24: Математика | U24: =C24+E24+G24 -> 0 | V24: =D24+F24+H24 -> 0
A25: Итого | U25: =SUM(U24:U24) -> 0 | V25: =SUM(V24:V24) -> 0
A26: Итого (1 и 2 части плана) | C26: =C25+C22 -> 23 | D26: 782 | E26: 23 | F26: 782 | G26: 23 | H26: 782 | I26: =I25+I22 -> 23 | J26: =J25+J22 -> 782 | K26: =K25+K22 -> 23 | L26: =L25+L22 -> 782 | M26: =M25+M22 -> 23 | N26: =N25+N22 -> 782 | O26: =O25+O22 -> 23 | P26: =P25+P22 -> 782 | Q26: =Q25+Q22 -> 23 | R26: =R25+R22 -> 782 | S26: =S25+S22 -> 23 | T26: 782 | U26: =U25+U22 -> 207 | V26: =V25+V22 -> 7038
